[Event "*** Titled Tuesday Blitz"]
[Site "Chess.com"]
[Date "2019.08.06"]
[Round "6"]
[White "GM_shahin"]
[Black "K_A_S_T_O_R"]
[Result "0-1"]
[WhiteElo "2887"]
[BlackElo "2805"]
[TimeControl "180+2"]
[EndTime "14:23:33 PDT"]
[Termination "K_A_S_T_O_R won by resignation"]

1. b3 {[%clk 0:03:01.9]} 1... d5 {[%clk 0:02:58.9]} 2. Bb2 {[%clk 0:03:03]} 2...
Bg4 {[%clk 0:02:59.8]} 3. Nf3 {[%clk 0:03:03.7]} 3... Bxf3 {[%clk 0:03:00.6]} 4.
gxf3 {[%clk 0:03:04.4]} 4... e6 {[%clk 0:03:01.5]} 5. e3 {[%clk 0:03:05.3]} 5...
Nf6 {[%clk 0:03:02.9]} 6. c4 {[%clk 0:03:06.2]} 6... c6 {[%clk 0:03:03.5]} 7. d4
{[%clk 0:03:00.9]} 7... Nbd7 {[%clk 0:03:01.5]} 8. Nd2 {[%clk 0:03:02.4]} 8...
g6 {[%clk 0:03:00.3]} 9. f4 {[%clk 0:02:59.6]} 9... Bb4 {[%clk 0:02:54.3]} 10.
a3 {[%clk 0:02:57.7]} 10... Bxd2+ {[%clk 0:02:55.2]} 11. Qxd2 {[%clk 0:02:59.6]}
11... Ne4 {[%clk 0:02:55.7]} 12. Qc2 {[%clk 0:02:59.2]} 12... Qh4 {[%clk
0:02:56.5]} 13. Bg2 {[%clk 0:02:51.8]} 13... Ndf6 {[%clk 0:02:56.4]} 14. h3
{[%clk 0:02:38.4]} 14... O-O {[%clk 0:02:55.1]} 15. a4 {[%clk 0:02:29.9]} 15...
a5 {[%clk 0:02:53.9]} 16. Ba3 {[%clk 0:02:30.1]} 16... Rfe8 {[%clk 0:02:54.7]}
17. O-O {[%clk 0:02:23.9]} 17... Rad8 {[%clk 0:02:53.7]} 18. b4 {[%clk
0:02:16.3]} 18... axb4 {[%clk 0:02:53.3]} 19. Bxb4 {[%clk 0:02:18.2]} 19... Nd6
{[%clk 0:02:54.2]} 20. Bxd6 {[%clk 0:01:47.4]} 20... Rxd6 {[%clk 0:02:54.4]} 21.
Rfb1 {[%clk 0:01:48.2]} 21... Rd7 {[%clk 0:02:55.5]} 22. Rb3 {[%clk 0:01:47.1]}
22... Ree7 {[%clk 0:02:53.7]} 23. Rab1 {[%clk 0:01:47.9]} 23... Ne8 {[%clk
0:02:54.7]} 24. c5 {[%clk 0:01:47.8]} 24... Ng7 {[%clk 0:02:54]} 25. Qb2 {[%clk
0:01:47.9]} 25... Nf5 {[%clk 0:02:53.9]} 26. Qe2 {[%clk 0:01:34.6]} 26... h5
{[%clk 0:02:53.7]} 27. a5 {[%clk 0:01:26]} 27... Kh7 {[%clk 0:02:49.4]} 28. a6
{[%clk 0:01:25.2]} 28... bxa6 {[%clk 0:02:49.4]} 29. Qxa6 {[%clk 0:01:27.1]}
29... Rc7 {[%clk 0:02:49.5]} 30. Rb7 {[%clk 0:01:26.6]} 30... Kg7 {[%clk
0:02:30.4]} 31. Qa7 {[%clk 0:01:13.6]} 31... Rxb7 {[%clk 0:02:13.8]} 32. Rxb7
{[%clk 0:01:15.5]} 32... Rxb7 {[%clk 0:02:04]} 33. Qxb7 {[%clk 0:01:16.3]} 33...
g5 {[%clk 0:02:05.6]} 34. fxg5 {[%clk 0:00:52]} 34... Qxg5 {[%clk 0:02:05.7]}
35. Kf1 {[%clk 0:00:34.6]} 35... Nh4 {[%clk 0:02:06.3]} 36. Bh1 {[%clk
0:00:35.8]} 36... Qf5 {[%clk 0:02:07.9]} 37. Qxc6 {[%clk 0:00:36.1]} 37... Qxh3+
{[%clk 0:02:08.7]} 38. Kg1 {[%clk 0:00:37.2]} 38... Qg4+ {[%clk 0:02:10.1]} 39.
Kh2 {[%clk 0:00:36.3]} 39... Qe2 {[%clk 0:02:11.3]} 40. Kg3 {[%clk 0:00:30.8]}
40... Nf5+ {[%clk 0:02:11.8]} 41. Kh3 {[%clk 0:00:23.4]} 41... Qxf2 {[%clk
0:02:07.7]} 42. Qc7 {[%clk 0:00:24.9]} 42... Qxe3+ {[%clk 0:01:59.6]} 43. Kh2
{[%clk 0:00:25.3]} 43... Qf2+ {[%clk 0:01:55.3]} 44. Bg2 {[%clk 0:00:22.7]}
44... Ne3 {[%clk 0:01:51.3]} 45. Qg3+ {[%clk 0:00:15.4]} 45... Ng4+ {[%clk
0:01:51.6]} 46. Kh3 {[%clk 0:00:15.7]} 46... Qxg3+ {[%clk 0:01:47]} 47. Kxg3
{[%clk 0:00:17.6]} 47... Kf6 {[%clk 0:01:48.4]} 48. Bf3 {[%clk 0:00:17.8]} 48...
Ne3 {[%clk 0:01:49.6]} 49. Bxh5 {[%clk 0:00:17.1]} 49... Nf5+ {[%clk 0:01:50.9]}
50. Kf4 {[%clk 0:00:17.4]} 50... Nxd4 {[%clk 0:01:52.8]} 51. Bd1 {[%clk
0:00:18.7]} 51... e5+ {[%clk 0:01:53.3]} 52. Ke3 {[%clk 0:00:20.3]} 52... Ke6
{[%clk 0:01:53.3]} 53. Kd3 {[%clk 0:00:19.2]} 53... Kd7 {[%clk 0:01:53.2]} 54.
Ba4+ {[%clk 0:00:19.1]} 54... Kc7 {[%clk 0:01:54.2]} 55. Be8 {[%clk 0:00:20.3]}
55... f6 {[%clk 0:01:54.8]} 56. Kc3 {[%clk 0:00:18.8]} 56... Ne6 {[%clk
0:01:54.5]} 57. Kb4 {[%clk 0:00:19.8]} 57... Nd8 {[%clk 0:01:52.4]} 58. Kb5
{[%clk 0:00:19.4]} 58... f5 {[%clk 0:01:53.5]} 59. c6 {[%clk 0:00:15.6]} 59...
f4 {[%clk 0:01:52.8]} 60. Kc5 {[%clk 0:00:09.3]} 60... d4 {[%clk 0:01:52.5]} 61.
Kd5 {[%clk 0:00:07]} 61... f3 {[%clk 0:01:47.9]} 62. Bh5 {[%clk 0:00:05.3]}
62... f2 {[%clk 0:01:49.2]} 63. Be2 {[%clk 0:00:06]} 63... Nxc6 {[%clk
0:01:50.7]} 64. Kc5 {[%clk 0:00:07.3]} 64... e4 {[%clk 0:01:47.4]} 0-1

[Event "*** Titled Tuesday Blitz"]
[Site "Chess.com"]
[Date "2019.08.06"]
[Round "6"]
[White "BabyFacedAssasin"]
[Black "gemarin"]
[Result "0-1"]
[WhiteElo "2167"]
[BlackElo "2087"]
[TimeControl "180+2"]
[EndTime "14:23:33 PDT"]
[Termination "gemarin won by resignation"]

1. e4 {[%clk 0:03:01.9]} 1... c5 {[%clk 0:03:00.2]} 2. Nf3 {[%clk 0:03:01.5]}
2... Nc6 {[%clk 0:03:00.6]} 3. Bb5 {[%clk 0:03:01.7]} 3... g6 {[%clk 0:03:00.7]}
4. Bxc6 {[%clk 0:03:00.5]} 4... dxc6 {[%clk 0:03:01.6]} 5. d3 {[%clk 0:03:01.7]}
5... Bg7 {[%clk 0:02:58.8]} 6. h3 {[%clk 0:03:02.6]} 6... e5 {[%clk 0:02:58.8]}
7. O-O {[%clk 0:02:58]} 7... b6 {[%clk 0:02:51.9]} 8. Nc3 {[%clk 0:02:54.3]}
8... Be6 {[%clk 0:02:50.6]} 9. Ng5 {[%clk 0:02:50.4]} 9... Qe7 {[%clk
0:02:44.1]} 10. Nxe6 {[%clk 0:02:38]} 10... Qxe6 {[%clk 0:02:44.3]} 11. Be3
{[%clk 0:02:35.8]} 11... Ne7 {[%clk 0:02:41.6]} 12. a4 {[%clk 0:02:35.1]} 12...
c4 {[%clk 0:02:37.4]} 13. dxc4 {[%clk 0:02:30.3]} 13... Qxc4 {[%clk 0:02:37.6]}
14. a5 {[%clk 0:02:23]} 14... b5 {[%clk 0:02:27.5]} 15. Qd6 {[%clk 0:02:22.3]}
15... b4 {[%clk 0:02:20.9]} 16. Bc5 {[%clk 0:02:15.4]} 16... O-O {[%clk
0:01:27.9]} 17. Bxb4 {[%clk 0:01:41.5]} 17... Nc8 {[%clk 0:01:27.3]} 18. Qc5
{[%clk 0:01:41.2]} 18... Qe6 {[%clk 0:01:25.1]} 19. Rfd1 {[%clk 0:01:38.8]}
19... Re8 {[%clk 0:01:21.5]} 20. Rd3 {[%clk 0:01:34]} 20... Rb8 {[%clk
0:01:21.8]} 21. Rad1 {[%clk 0:01:32.3]} 21... Bf8 {[%clk 0:01:14.1]} 22. Qe3
{[%clk 0:01:03.4]} 22... Bxb4 {[%clk 0:01:12.4]} 23. Rd8 {[%clk 0:00:53.9]}
23... Bxa5 {[%clk 0:01:07]} 24. Rxe8+ {[%clk 0:00:50.5]} 24... Qxe8 {[%clk
0:01:07.1]} 25. b3 {[%clk 0:00:43.9]} 25... Bb6 {[%clk 0:00:53.5]} 26. Qd3
{[%clk 0:00:35.1]} 26... Bd4 {[%clk 0:00:49.5]} 27. Ne2 {[%clk 0:00:32.6]} 27...
Bb6 {[%clk 0:00:46.4]} 28. c4 {[%clk 0:00:20.2]} 28... Ne7 {[%clk 0:00:46]} 29.
b4 {[%clk 0:00:17.8]} 29... Rd8 {[%clk 0:00:46.1]} 30. Qc2 {[%clk 0:00:18]}
30... Rxd1+ {[%clk 0:00:44.8]} 31. Qxd1 {[%clk 0:00:19.3]} 31... Qd8 {[%clk
0:00:42.5]} 32. Qc2 {[%clk 0:00:19.3]} 32... Bd4 {[%clk 0:00:43.1]} 33. c5
{[%clk 0:00:20.3]} 33... Kg7 {[%clk 0:00:38.1]} 34. Qa2 {[%clk 0:00:20.1]} 34...
Qd7 {[%clk 0:00:37.7]} 35. Qa6 {[%clk 0:00:19]} 35... Ng8 {[%clk 0:00:37.3]} 36.
Qd3 {[%clk 0:00:19]} 36... Nf6 {[%clk 0:00:37.7]} 37. Kf1 {[%clk 0:00:18.1]}
37... Bb2 {[%clk 0:00:36.9]} 38. Qc2 {[%clk 0:00:18.8]} 38... Bd4 {[%clk
0:00:36.4]} 39. f3 {[%clk 0:00:19.1]} 39... Be3 {[%clk 0:00:36.2]} 40. g3 {[%clk
0:00:17.3]} 40... Qd2 {[%clk 0:00:36]} 41. Qxd2 {[%clk 0:00:12.6]} 41... Bxd2
{[%clk 0:00:36.8]} 42. b5 {[%clk 0:00:12.9]} 42... cxb5 {[%clk 0:00:38]} 43. c6
{[%clk 0:00:14.2]} 43... Ba5 {[%clk 0:00:39.4]} 44. Nc3 {[%clk 0:00:13.1]} 44...
a6 {[%clk 0:00:39.5]} 45. Na2 {[%clk 0:00:12.8]} 45... Ne8 {[%clk 0:00:35.8]}
46. Ke2 {[%clk 0:00:14.1]} 46... Nc7 {[%clk 0:00:35.6]} 47. Kd3 {[%clk
0:00:15.5]} 47... Kf8 {[%clk 0:00:36.3]} 48. Kc2 {[%clk 0:00:16.3]} 48... Ke7
{[%clk 0:00:37.3]} 49. f4 {[%clk 0:00:17]} 49... exf4 {[%clk 0:00:37.3]} 50.
gxf4 {[%clk 0:00:17.9]} 50... Kd6 {[%clk 0:00:38.7]} 51. Kd3 {[%clk 0:00:18.1]}
51... Kxc6 {[%clk 0:00:39.4]} 52. Nc1 {[%clk 0:00:19.7]} 52... Ne6 {[%clk
0:00:39.7]} 53. Nb3 {[%clk 0:00:20.6]} 53... Nc5+ {[%clk 0:00:39.9]} 54. Nxc5
{[%clk 0:00:21.4]} 54... Kxc5 {[%clk 0:00:41.4]} 55. e5 {[%clk 0:00:22.8]} 55...
Bc7 {[%clk 0:00:41.7]} 56. Ke4 {[%clk 0:00:24.1]} 56... a5 {[%clk 0:00:42.5]}
57. f5 {[%clk 0:00:26]} 57... gxf5+ {[%clk 0:00:43]} 58. Kxf5 {[%clk 0:00:27.1]}
58... Bd8 {[%clk 0:00:44.5]} 0-1

[Event "*** Titled Tuesday Blitz"]
[Site "Chess.com"]
[Date "2019.08.06"]
[Round "6"]
[White "Saitama_Hero"]
[Black "ama18"]
[Result "0-1"]
[WhiteElo "2324"]
[BlackElo "2461"]
[TimeControl "180+2"]
[EndTime "14:23:51 PDT"]
[Termination "ama18 won by resignation"]

1. d4 {[%clk 0:03:01.1]} 1... Nf6 {[%clk 0:03:00.1]} 2. c4 {[%clk 0:03:02.5]}
2... e6 {[%clk 0:03:01.6]} 3. Nc3 {[%clk 0:03:02.5]} 3... d5 {[%clk 0:03:03]} 4.
Nf3 {[%clk 0:03:01.5]} 4... c5 {[%clk 0:03:02.9]} 5. e3 {[%clk 0:03:00.5]} 5...
a6 {[%clk 0:03:02.8]} 6. a3 {[%clk 0:02:59.4]} 6... Nc6 {[%clk 0:03:00.3]} 7.
Bd3 {[%clk 0:03:00.5]} 7... dxc4 {[%clk 0:02:58.7]} 8. Bxc4 {[%clk 0:03:00.6]}
8... b5 {[%clk 0:03:00.6]} 9. Ba2 {[%clk 0:02:54]} 9... Bb7 {[%clk 0:02:54.2]}
10. O-O {[%clk 0:02:53.9]} 10... Be7 {[%clk 0:02:46.3]} 11. Qe2 {[%clk
0:02:51.7]} 11... cxd4 {[%clk 0:02:42.5]} 12. Rd1 {[%clk 0:02:49.8]} 12... O-O
{[%clk 0:02:38.6]} 13. exd4 {[%clk 0:02:49.4]} 13... Nd5 {[%clk 0:02:15.7]} 14.
Nxd5 {[%clk 0:02:42.1]} 14... exd5 {[%clk 0:02:17.6]} 15. Bf4 {[%clk 0:02:38.9]}
15... Bf6 {[%clk 0:02:16.7]} 16. Rac1 {[%clk 0:02:24.2]} 16... Re8 {[%clk
0:02:16.1]} 17. Ne5 {[%clk 0:02:12.2]} 17... Rc8 {[%clk 0:02:08.3]} 18. Rc3
{[%clk 0:01:25.7]} 18... g6 {[%clk 0:01:42.1]} 19. Re3 {[%clk 0:01:20.9]} 19...
Ne7 {[%clk 0:01:23.1]} 20. Ng4 {[%clk 0:01:19.3]} 20... Bg7 {[%clk 0:00:46.7]}
21. Re1 {[%clk 0:01:14.5]} 21... Kf8 {[%clk 0:00:41.7]} 22. Bg5 {[%clk
0:00:59.8]} 22... Rc7 {[%clk 0:00:42.5]} 23. Nf6 {[%clk 0:00:57]} 23... Bxf6
{[%clk 0:00:43.2]} 24. Bxf6 {[%clk 0:00:58.9]} 24... Qd7 {[%clk 0:00:35.7]} 25.
Re5 {[%clk 0:00:53.6]} 25... Bc6 {[%clk 0:00:32.2]} 26. Qe3 {[%clk 0:00:51.5]}
26... Nf5 {[%clk 0:00:28.3]} 27. Qh3 {[%clk 0:00:25.6]} 27... Rxe5 {[%clk
0:00:20.9]} 28. Bxe5 {[%clk 0:00:27.5]} 28... h5 {[%clk 0:00:21.4]} 29. Bxc7
{[%clk 0:00:26.7]} 29... Qxc7 {[%clk 0:00:21.8]} 30. Qc3 {[%clk 0:00:26.6]}
30... Qb6 {[%clk 0:00:19.9]} 31. Qc5+ {[%clk 0:00:20.6]} 31... Qxc5 {[%clk
0:00:20.3]} 32. dxc5 {[%clk 0:00:22.5]} 32... d4 {[%clk 0:00:20.8]} 33. Rd1
{[%clk 0:00:21.5]} 33... Ke7 {[%clk 0:00:19.7]} 34. b4 {[%clk 0:00:22.7]} 34...
Kf6 {[%clk 0:00:20.1]} 35. Bb1 {[%clk 0:00:19.6]} 35... Ke5 {[%clk 0:00:21]} 36.
g3 {[%clk 0:00:19.7]} 36... Bf3 {[%clk 0:00:19.2]} 37. Re1+ {[%clk 0:00:17.6]}
37... Kd5 {[%clk 0:00:20.4]} 38. Ba2+ {[%clk 0:00:18.3]} 38... Kc6 {[%clk
0:00:21.6]} 39. Bxf7 {[%clk 0:00:19.4]} 39... d3 {[%clk 0:00:22.6]} 40. Bb3
{[%clk 0:00:12]} 40... Nd4 {[%clk 0:00:21]} 41. Bd1 {[%clk 0:00:10.2]} 41... d2
{[%clk 0:00:21.5]} 42. Rf1 {[%clk 0:00:10.2]} 42... Ne2+ {[%clk 0:00:22.4]} 43.
Bxe2 {[%clk 0:00:10.2]} 43... Bxe2 {[%clk 0:00:24.3]} 44. Ra1 {[%clk 0:00:11.3]}
44... d1=Q+ {[%clk 0:00:23.1]} 45. Rxd1 {[%clk 0:00:12.8]} 45... Bxd1 {[%clk
0:00:24.5]} 46. f4 {[%clk 0:00:14.4]} 46... Kd5 {[%clk 0:00:24.3]} 47. Kf2
{[%clk 0:00:16.3]} 47... Bg4 {[%clk 0:00:23.8]} 48. Ke3 {[%clk 0:00:17.1]} 48...
Bf5 {[%clk 0:00:24.4]} 49. Kd2 {[%clk 0:00:17]} 49... Kc4 {[%clk 0:00:25.3]} 50.
c6 {[%clk 0:00:16.9]} 50... Kb3 {[%clk 0:00:26.1]} 51. c7 {[%clk 0:00:18.4]}
51... Kxa3 {[%clk 0:00:27]} 52. Kc3 {[%clk 0:00:20.2]} 52... Ka4 {[%clk
0:00:28]} 53. g4 {[%clk 0:00:16.6]} 53... hxg4 {[%clk 0:00:26.7]} 0-1

[Event "*** Titled Tuesday Blitz"]
[Site "Chess.com"]
[Date "2019.08.06"]
[Round "6"]
[White "I-Mesquita"]
[Black "FearNoEvil12"]
[Result "1-0"]
[WhiteElo "2697"]
[BlackElo "2001"]
[TimeControl "180+2"]
[EndTime "14:23:51 PDT"]
[Termination "I-Mesquita won by resignation"]

1. Nf3 {[%clk 0:03:01.9]} 1... b5 {[%clk 0:02:59.3]} 2. g3 {[%clk 0:03:01.2]}
2... Bb7 {[%clk 0:02:58.3]} 3. Bg2 {[%clk 0:03:01.3]} 3... a6 {[%clk 0:02:59.5]}
4. O-O {[%clk 0:03:01.8]} 4... Nf6 {[%clk 0:03:00.1]} 5. b3 {[%clk 0:03:01]}
5... e6 {[%clk 0:03:00.6]} 6. Bb2 {[%clk 0:03:01.7]} 6... d6 {[%clk 0:03:00.6]}
7. c4 {[%clk 0:02:55]} 7... Nbd7 {[%clk 0:03:01]} 8. d3 {[%clk 0:02:48.6]} 8...
Be7 {[%clk 0:02:59.8]} 9. Nc3 {[%clk 0:02:40.4]} 9... b4 {[%clk 0:02:58.9]} 10.
Nb1 {[%clk 0:02:37.7]} 10... O-O {[%clk 0:02:58.1]} 11. Nbd2 {[%clk 0:02:38.2]}
11... c5 {[%clk 0:02:56.5]} 12. e4 {[%clk 0:02:32.6]} 12... Qc7 {[%clk
0:02:51.5]} 13. Re1 {[%clk 0:02:14.4]} 13... e5 {[%clk 0:02:39.2]} 14. Nf1
{[%clk 0:02:04.9]} 14... Nb8 {[%clk 0:02:37.8]} 15. Ne3 {[%clk 0:02:05.2]} 15...
g6 {[%clk 0:02:36.8]} 16. Nh4 {[%clk 0:01:49.6]} 16... Nc6 {[%clk 0:02:34.5]}
17. f4 {[%clk 0:01:48.3]} 17... Nd4 {[%clk 0:02:34.4]} 18. Rf1 {[%clk
0:01:41.9]} 18... Nh5 {[%clk 0:02:33.8]} 19. Nhf5 {[%clk 0:01:13.6]} 19... exf4
{[%clk 0:02:16.2]} 20. gxf4 {[%clk 0:01:00.5]} 20... Bf6 {[%clk 0:02:07]} 21.
Rf2 {[%clk 0:00:49.4]} 21... Nxf5 {[%clk 0:01:49.8]} 22. Nxf5 {[%clk 0:00:46.9]}
22... Bxb2 {[%clk 0:01:46]} 23. Rxb2 {[%clk 0:00:43.2]} 23... Nxf4 {[%clk
0:01:46.5]} 24. Qg4 {[%clk 0:00:42.9]} 24... Nxd3 {[%clk 0:01:36]} 25. Rd2
{[%clk 0:00:36.6]} 25... Ne5 {[%clk 0:01:34.8]} 26. Qg5 {[%clk 0:00:37.9]} 26...
f6 {[%clk 0:01:32.7]} 27. Qg3 {[%clk 0:00:38.5]} 27... Rad8 {[%clk 0:01:28.6]}
28. Rad1 {[%clk 0:00:39.8]} 28... Nf7 {[%clk 0:01:08.1]} 29. h4 {[%clk
0:00:40.9]} 29... Kh8 {[%clk 0:01:05.9]} 30. Ne3 {[%clk 0:00:42.1]} 30... Ne5
{[%clk 0:01:03.6]} 31. Rf1 {[%clk 0:00:38.7]} 31... Rf7 {[%clk 0:01:01]} 32. h5
{[%clk 0:00:37.4]} 32... Rg8 {[%clk 0:00:59.9]} 33. h6 {[%clk 0:00:34.8]} 33...
Qd8 {[%clk 0:00:51.3]} 34. Rfd1 {[%clk 0:00:35.1]} 34... Rd7 {[%clk 0:00:49.7]}
35. Qf4 {[%clk 0:00:34.4]} 35... Qf8 {[%clk 0:00:42.4]} 36. Rf1 {[%clk
0:00:34.7]} 36... Rf7 {[%clk 0:00:38.4]} 37. Qh4 {[%clk 0:00:28.4]} 37... g5
{[%clk 0:00:34.6]} 38. Qh2 {[%clk 0:00:28.7]} 38... Rg6 {[%clk 0:00:35]} 39. Nf5
{[%clk 0:00:28.5]} 39... Ng4 {[%clk 0:00:26.8]} 40. Qxd6 {[%clk 0:00:27.6]}
40... Qxd6 {[%clk 0:00:23.5]} 41. Rxd6 {[%clk 0:00:29.5]} 41... Nxh6 {[%clk
0:00:23.5]} 42. Rd8+ {[%clk 0:00:28.7]} 42... Ng8 {[%clk 0:00:23]} 43. Nd6
{[%clk 0:00:29.5]} 43... Rc7 {[%clk 0:00:20.3]} 44. Bh3 {[%clk 0:00:23.2]} 44...
Rgg7 {[%clk 0:00:17.3]} 45. Be6 {[%clk 0:00:22.3]} 45... Bxe4 {[%clk 0:00:13.9]}
46. Ne8 {[%clk 0:00:21.7]} 46... Rce7 {[%clk 0:00:14.5]} 47. Nxg7 {[%clk
0:00:19.9]} 47... Kxg7 {[%clk 0:00:15.3]} 48. Bxg8 {[%clk 0:00:20.3]} 48... Kh6
{[%clk 0:00:16.9]} 49. Bd5 {[%clk 0:00:21.4]} 49... f5 {[%clk 0:00:17.7]} 50.
Bxe4 {[%clk 0:00:22.2]} 50... fxe4 {[%clk 0:00:18.9]} 51. Kf2 {[%clk 0:00:23.2]}
51... Kg6 {[%clk 0:00:18.8]} 52. Ke3 {[%clk 0:00:24.1]} 52... h6 {[%clk
0:00:20.2]} 53. Rd6+ {[%clk 0:00:24.9]} 53... Kh5 {[%clk 0:00:20.4]} 54. Rh1+
{[%clk 0:00:26.3]} 54... Kg4 {[%clk 0:00:21.9]} 55. Rdxh6 {[%clk 0:00:26.2]}
55... Rf7 {[%clk 0:00:22.8]} 56. Rg1+ {[%clk 0:00:27.2]} 56... Kf5 {[%clk
0:00:23]} 57. Rf1+ {[%clk 0:00:28.8]} 57... Ke5 {[%clk 0:00:23.8]} 58. Rxf7
{[%clk 0:00:29]} 1-0

[Event "*** Titled Tuesday Blitz"]
[Site "Chess.com"]
[Date "2019.08.06"]
[Round "6"]
[White "medalja"]
[Black "Ibraev_Vasilj"]
[Result "1-0"]
[WhiteElo "2365"]
[BlackElo "2282"]
[TimeControl "180+2"]
[EndTime "14:23:52 PDT"]
[Termination "medalja won by resignation"]

1. d4 {[%clk 0:03:01.9]} 1... g6 {[%clk 0:03:00.5]} 2. c4 {[%clk 0:02:58.4]}
2... Bg7 {[%clk 0:03:01.1]} 3. Nf3 {[%clk 0:02:57.8]} 3... d6 {[%clk 0:03:01.4]}
4. g3 {[%clk 0:02:56.6]} 4... Nc6 {[%clk 0:03:00.5]} 5. Bg2 {[%clk 0:02:56.4]}
5... Bg4 {[%clk 0:03:00.8]} 6. d5 {[%clk 0:02:53.7]} 6... Bxf3 {[%clk
0:02:47.4]} 7. Bxf3 {[%clk 0:02:48.5]} 7... Ne5 {[%clk 0:02:47.9]} 8. Bg2 {[%clk
0:02:49.2]} 8... Nf6 {[%clk 0:02:47.3]} 9. f4 {[%clk 0:02:45.8]} 9... Ned7
{[%clk 0:02:44.4]} 10. O-O {[%clk 0:02:46.3]} 10... O-O {[%clk 0:02:43.7]} 11.
e4 {[%clk 0:02:47.2]} 11... c6 {[%clk 0:02:38.3]} 12. Nc3 {[%clk 0:02:17.7]}
12... cxd5 {[%clk 0:02:37.7]} 13. exd5 {[%clk 0:02:07.3]} 13... a6 {[%clk
0:02:34]} 14. Qe2 {[%clk 0:02:08.1]} 14... Re8 {[%clk 0:02:32.7]} 15. Be3 {[%clk
0:02:02.5]} 15... Qa5 {[%clk 0:02:21]} 16. Rfc1 {[%clk 0:01:37.8]} 16... Rac8
{[%clk 0:02:14.9]} 17. a3 {[%clk 0:01:20.7]} 17... Qc7 {[%clk 0:02:03.7]} 18. b3
{[%clk 0:01:19.6]} 18... h5 {[%clk 0:01:58.5]} 19. h3 {[%clk 0:01:20.6]} 19...
Nc5 {[%clk 0:01:53.6]} 20. Rab1 {[%clk 0:01:18.5]} 20... b6 {[%clk 0:01:42.2]}
21. g4 {[%clk 0:01:08.7]} 21... hxg4 {[%clk 0:01:40.8]} 22. hxg4 {[%clk
0:01:10.6]} 22... Nfd7 {[%clk 0:01:33.7]} 23. Bf3 {[%clk 0:01:03.2]} 23... Rb8
{[%clk 0:01:18.6]} 24. Kg2 {[%clk 0:00:57.6]} 24... Nf6 {[%clk 0:00:44.6]} 25.
g5 {[%clk 0:00:43.6]} 25... Nfd7 {[%clk 0:00:41.1]} 26. b4 {[%clk 0:00:42.6]}
26... Nb7 {[%clk 0:00:36.8]} 27. Ne4 {[%clk 0:00:43.5]} 27... e6 {[%clk
0:00:31.7]} 28. Qf2 {[%clk 0:00:32.8]} 28... exd5 {[%clk 0:00:26.6]} 29. cxd5
{[%clk 0:00:34.7]} 29... Qd8 {[%clk 0:00:26.9]} 30. Rh1 {[%clk 0:00:30.1]} 30...
a5 {[%clk 0:00:26.7]} 31. Bd4 {[%clk 0:00:23]} 31... axb4 {[%clk 0:00:12.1]} 32.
Bxg7 {[%clk 0:00:22.8]} 32... Kxg7 {[%clk 0:00:12.7]} 33. Qd4+ {[%clk
0:00:23.6]} 33... Kf8 {[%clk 0:00:13.2]} 34. Rbe1 {[%clk 0:00:16]} 34... Ne5
{[%clk 0:00:07.6]} 35. fxe5 {[%clk 0:00:04.2]} 35... Rxe5 {[%clk 0:00:07.5]} 36.
Nf6 {[%clk 0:00:03.8]} 36... Rxg5+ {[%clk 0:00:07.9]} 37. Kf2 {[%clk 0:00:04.2]}
37... Re5 {[%clk 0:00:08.6]} 38. Rh8+ {[%clk 0:00:04.5]} 38... Kg7 {[%clk
0:00:06.9]} 39. Rxd8 {[%clk 0:00:06.4]} 39... Rxd8 {[%clk 0:00:07.3]} 40. Rxe5
{[%clk 0:00:07.8]} 40... dxe5 {[%clk 0:00:07.7]} 41. Qxe5 {[%clk 0:00:09.7]}
41... Kf8 {[%clk 0:00:07.6]} 42. Nh7+ {[%clk 0:00:09.5]} 42... Kg8 {[%clk
0:00:07.4]} 43. Nf6+ {[%clk 0:00:11.4]} 43... Kf8 {[%clk 0:00:07.9]} 44. axb4
{[%clk 0:00:13.3]} 44... Nd6 {[%clk 0:00:08]} 45. Nh7+ {[%clk 0:00:14.4]} 45...
Kg8 {[%clk 0:00:08.5]} 46. Qe7 {[%clk 0:00:15.7]} 46... Re8 {[%clk 0:00:03.4]}
47. Nf6+ {[%clk 0:00:15.9]} 47... Kg7 {[%clk 0:00:03.7]} 48. Nxe8+ {[%clk
0:00:17]} 48... Nxe8 {[%clk 0:00:04.6]} 49. Qxe8 {[%clk 0:00:18.9]} 1-0